bitfinex/quotes_ETHUSD_20250903
["timestamp","ask_amount","ask_price","bid_price","bid_amount"]
[1756912300658,0.0012,4475.8,4475.7,3.823]
[1756912301181,0.0012,4475.8,4475.7,6.05728737]
[1756912301351,0.0012,4475.8,4475.7,6.35698737]
[1756912301557,0.0012,4475.8,4475.7,8.50445073]
[1756912301763,0.0012,4475.8,4475.7,8.61645073]
[1756912301978,0.0012,4475.8,4475.7,4.79345073]
[1756912302278,0.0012,4475.8,4475.7,8.62245073]
[1756912302481,0.0012,4475.8,4475.7,4.79345073]
[1756912302686,0.0012,4475.8,4475.7,8.62145073]
[1756912303168,0.0012,4475.8,4475.7,4.79345073]
[1756912303368,0.0012,4475.8,4475.7,8.62245073]
[1756912303976,0.0012,4475.8,4475.7,8.62145073]
[1756912304780,0.0012,4475.8,4475.7,4.79345073]
[1756912305087,0.0012,4475.8,4475.7,8.62045073]
[1756912306112,0.0012,4475.8,4475.7,4.79345073]
[1756912306282,0.0012,4475.8,4475.7,8.62045073]
[1756912307671,0.0012,4475.8,4475.7,4.79345073]
[1756912307874,0.0012,4475.8,4475.7,8.61945073]
[1756912308483,0.0012,4475.8,4475.7,8.61745073]
[1756912309265,0.3032,4475.8,4475.7,0.112]
[1756912309554,0.7375,4475.8,4475.5,0.001]
[1756912309748,0.4343,4475.7,4475.6,3.824]
[1756912309954,0.7363,4475.7,4475.6,3.824]
[1756912310190,0.7363,4475.7,4475.6,3.825]
[1756912311492,0.7355,4475.7,4475.6,3.825]
[1756912312258,0.7355,4475.7,4475.6,0.001]
[1756912312461,0.7355,4475.7,4475.6,3.824]
[1756912312697,0.0012,4475.8,4475.6,3.824]
[1756912312875,0.0012,4475.8,4475.6,6.05829428]
[1756912313070,0.0012,4475.8,4475.6,6.05833013]
[1756912313270,0.0012,4475.8,4475.6,6.17033013]
[1756912313603,0.0012,4475.8,4475.6,3.936]
[1756912313897,0.7363,4475.7,4475.6,0.001]
[1756912314196,0.7363,4475.7,4475.6,3.824]
[1756912314386,2.97058737,4475.7,4475.6,3.824]
[1756912314577,0.7363,4475.7,4475.6,3.824]
[1756912315394,0.7363,4475.7,4475.6,0.001]
[1756912315784,0.7363,4475.7,4475.6,3.824]
[1756912316382,0.0012,4475.8,4475.7,2.23428737]
[1756912316575,0.0012,4475.8,4475.6,1.0034]
[1756912316895,0.0012,4475.8,4475.7,3.823]
[1756912317465,0.0012,4475.8,4475.7,6.05728737]
[1756912317661,0.0012,4475.8,4475.7,4.1227]
[1756912317880,0.0012,4475.8,4475.7,6.35698737]
[1756912318074,0.0012,4475.8,4475.7,7.37878737]
[1756912318374,0.0012,4475.8,4475.7,3.12468737]
[1756912318578,0.3032,4475.8,4475.7,3.823]
[1756912319304,0.0012,4475.8,4475.7,6.05728737]
[1756912319476,0.0012,4475.8,4475.7,6.35698737]
[1756912319667,0.0012,4475.8,4475.7,7.80662171]
[1756912320007,0.0012,4475.8,4475.7,9.15482171]
[1756912322687,0.0012,4475.8,4475.7,4.88762171]
[1756912323008,0.0012,4475.8,4475.7,9.15482171]
[1756912323374,0.0012,4475.8,4475.7,8.71062171]
[1756912323574,0.0012,4475.8,4475.7,9.15482171]
[1756912324274,0.0012,4475.8,4475.7,14.52382171]
[1756912324885,0.0012,4475.8,4475.7,17.52382171]
[1756912325077,0.002,4476.0,4475.7,17.52382171]
[1756912325078,1e-08,4476.0,4475.9,3.02618753]
[1756912325272,1e-08,4476.0,4475.9,5.01104102]
[1756912325473,1e-08,4476.0,4475.9,10.15724102]
[1756912327091,1e-08,4476.0,4475.9,13.15724102]
[1756912330311,1e-08,4476.0,4475.9,13.24676303]
[1756912330504,1e-08,4476.0,4475.9,13.24576303]
[1756912331480,1e-08,4476.8,4476.7,3.02578828]
[1756912331687,1e-08,4476.8,4476.7,26.60627448]
[1756912331895,0.025,4477.8,4477.7,6.02528941]
[1756912332131,0.025,4477.8,4477.7,16.93328941]
[1756912332327,0.025,4477.8,4477.7,18.25648941]
[1756912332628,0.025,4477.8,4477.7,20.58307547]
[1756912333210,0.3153,4477.8,4477.7,15.27227423]
[1756912333523,0.3153,4477.8,4477.7,17.04528941]
[1756912334020,0.025,4477.8,4477.7,17.04528941]
[1756912334224,0.3153,4477.8,4477.7,13.22328941]
[1756912334406,0.3153,4477.8,4477.7,14.04528941]
[1756912334609,0.025,4477.8,4477.7,14.34518941]
[1756912334810,0.025,4477.8,4477.7,16.00304423]
[1756912335300,0.025,4477.8,4477.7,17.02634423]
[1756912335811,0.025,4477.8,4477.7,16.16785722]
[1756912336005,0.3145,4477.8,4477.7,15.70314423]
[1756912336208,0.3145,4477.8,4477.7,11.88114423]
[1756912336517,0.3145,4477.8,4477.7,15.70314423]
[1756912337008,0.0242,4477.8,4477.7,15.70314423]
[1756912337793,0.0242,4477.8,4477.7,11.88114423]
[1756912337988,0.3145,4477.8,4477.7,15.70214423]
[1756912338983,0.3145,4477.8,4477.7,11.88114423]
[1756912339190,0.3145,4477.8,4477.7,15.70214423]
[1756912340203,0.0242,4477.8,4477.7,16.00204423]
[1756912340605,0.3145,4477.8,4477.7,11.88114423]
[1756912340810,0.3145,4477.8,4477.7,15.70214423]
[1756912341015,0.3145,4477.8,4477.7,14.04428941]
[1756912341623,0.0242,4477.8,4477.7,14.04428941]
[1756912341800,0.3145,4477.8,4477.7,14.04428941]
[1756912342494,0.3145,4477.8,4477.7,13.25228941]
[1756912342694,1.3306,4477.8,4477.7,11.019]
[1756912343292,0.7888,4477.8,4477.7,13.25228941]
[1756912343488,0.3145,4477.8,4477.7,13.25228941]
[1756912343688,0.3145,4477.8,4477.7,10.97985658]
[1756912343913,0.7888,4477.8,4477.7,13.25228941]
[1756912344092,0.7888,4477.8,4477.7,9.43128941]
[1756912344422,0.3145,4477.8,4477.7,13.25228941]
[1756912344622,0.0242,4477.8,4477.7,14.34418941]
[1756912344792,0.3145,4477.8,4477.7,13.25228941]
[1756912344989,0.7888,4477.8,4477.7,13.25228941]
[1756912345184,0.0242,4477.8,4477.7,13.25228941]
[1756912345790,0.3145,4477.8,4477.7,13.25228941]
[1756912346323,0.7888,4477.8,4477.7,13.25228941]
[1756912346521,0.3145,4477.8,4477.7,13.25228941]
[1756912347101,0.0242,4477.8,4477.7,13.25228941]
[1756912347425,0.0262,4477.8,4477.7,13.25228941]
[1756912347723,0.0262,4477.8,4477.7,7.198]
[1756912347724,0.3165,4477.8,4477.7,7.198]
[1756912347892,0.3165,4477.8,4477.7,14.04328941]
[1756912348097,0.3165,4477.8,4477.7,9.43128941]
[1756912348289,0.3165,4477.8,4477.7,13.25128941]
[1756912348489,0.7908,4477.8,4477.7,13.25128941]
[1756912348922,0.7908,4477.8,4477.7,9.43128941]
[1756912349105,0.7908,4477.8,4477.7,13.25128941]
[1756912349718,0.7908,4477.8,4477.7,9.43128941]
[1756912349947,0.7883,4477.8,4477.7,13.25128941]
[1756912350103,0.7883,4477.8,4477.7,9.43128941]
[1756912350435,0.7883,4477.8,4477.7,13.25128941]
[1756912351510,0.3165,4477.8,4477.7,13.25128941]
[1756912351952,0.7883,4477.8,4477.7,13.25128941]
[1756912352606,0.3165,4477.8,4477.7,13.25128941]
[1756912355142,0.3165,4477.8,4477.7,13.55878941]
[1756912355143,0.0262,4477.8,4477.7,13.55878941]
[1756912355353,0.0262,4477.8,4477.7,9.43128941]
[1756912355529,0.0262,4477.8,4477.7,13.25128941]
[1756912355833,0.0262,4477.8,4477.7,15.41344704]
[1756912356236,0.0262,4477.8,4477.7,15.30144704]
[1756912356419,0.0262,4477.8,4477.7,15.88794704]
[1756912357638,0.0262,4477.8,4477.7,15.41344704]
[1756912357840,0.0262,4477.8,4477.7,14.83104704]
[1756912358243,0.0262,4477.8,4477.7,14.52354704]
[1756912358617,0.0262,4477.8,4477.7,10.70354704]
[1756912358816,0.0262,4477.8,4477.7,14.52354704]
[1756912359054,0.8557,4477.8,4477.7,7.198]
[1756912359345,1.3275,4477.8,4477.7,5.538]
[1756912359715,0.8045,4477.8,4477.7,5.538]
[1756912359917,0.8045,4477.8,4477.7,1.718]
[1756912360117,0.8045,4477.8,4477.7,5.538]
[1756912360540,0.8037,4477.8,4477.7,5.538]
[1756912360938,0.8037,4477.8,4477.7,1.718]
[1756912361130,1.3267,4477.8,4477.7,5.538]
[1756912362825,0.8037,4477.8,4477.7,5.538]
[1756912363051,0.8037,4477.8,4477.7,1.718]
[1756912363225,0.8037,4477.8,4477.7,5.538]
[1756912363421,0.3319,4477.8,4477.7,7.77128941]
[1756912363625,0.0254,4477.8,4477.7,7.77128941]
[1756912363844,0.0254,4477.8,4477.7,7.88328941]
[1756912364043,0.0254,4477.8,4477.7,8.77318941]
[1756912364331,0.0254,4477.8,4477.7,10.49356628]
[1756912364653,0.0254,4477.8,4477.7,5.9575]
[1756912364854,0.0254,4477.8,4477.7,8.77318941]
[1756912365355,0.0254,4477.8,4477.7,7.88328941]
[1756912365658,0.3319,4477.8,4477.7,7.88328941]
[1756912366058,0.0254,4477.8,4477.7,8.19078941]
[1756912366550,0.0254,4477.8,4477.7,7.88328941]
[1756912367121,0.3319,4477.8,4477.7,7.88328941]
[1756912367927,0.3319,4477.8,4477.7,5.65]
[1756912368237,0.3319,4477.8,4477.7,7.88328941]
[1756912368755,0.3319,4477.8,4477.7,5.65]
[1756912369337,0.8037,4477.8,4477.7,1.83]
[1756912369657,0.8037,4477.8,4477.7,5.538]
[1756912369861,0.8037,4477.8,4477.7,1.718]
[1756912370027,3.03693953,4477.8,4477.7,5.537]
[1756912370226,0.8037,4477.8,4477.7,5.537]
[1756912371631,0.8037,4477.8,4477.7,5.538]
[1756912372631,0.3319,4477.8,4477.7,5.538]
[1756912372830,0.0254,4477.8,4477.7,8.77318941]
[1756912373036,0.0254,4477.8,4477.7,9.24768941]
[1756912373839,0.3319,4477.8,4477.7,7.88228941]
[1756912374250,0.0254,4477.8,4477.7,4.37078941]
[1756912374465,0.0254,4477.8,4477.7,7.88228941]
[1756912374851,0.0254,4477.8,4477.7,8.18978941]
[1756912375167,0.0254,4477.8,4477.7,8.77218941]
[1756912375666,0.0254,4477.8,4477.7,9.24668941]
[1756912375834,0.0254,4477.8,4477.7,7.88228941]
[1756912376033,0.3319,4477.8,4477.7,5.649]
[1756912376262,0.3319,4477.8,4477.7,7.88228941]
[1756912376451,0.0254,4477.8,4477.7,7.88228941]
[1756912377064,0.0254,4477.8,4477.7,4.06328941]
[1756912377367,0.3319,4477.8,4477.7,5.649]
[1756912378139,0.0254,4477.8,4477.7,7.88228941]
[1756912378340,0.0254,4477.8,4477.7,8.77218941]
[1756912379354,0.0254,4477.8,4477.7,9.24668941]
[1756912380065,0.0254,4477.8,4477.7,11.30854398]
[1756912380266,0.0254,4477.8,4477.7,7.48954398]
[1756912380582,0.0254,4477.8,4477.7,10.81564398]
[1756912380883,0.0254,4477.8,4477.7,11.25544398]
[1756912382378,0.0254,4477.8,4477.7,10.81464398]
[1756912382982,0.0254,4477.8,4477.7,11.25444398]
[1756912383717,0.3334,4477.8,4477.7,5.33314398]
[1756912383891,0.3334,4477.8,4477.7,1.83]
[1756912384043,0.7847,4477.8,4477.7,5.648]
[1756912384448,0.3334,4477.8,4477.7,5.648]
[1756912384975,0.3326,4477.8,4477.7,7.88128941]
[1756912385589,0.3326,4477.8,4477.7,5.648]
[1756912386387,0.7839,4477.8,4477.7,5.648]
[1756912387509,0.7839,4477.8,4477.7,1.83]
[1756912387670,0.7839,4477.8,4477.6,0.001]
[1756912387671,2.23328941,4477.7,4477.6,0.001]
[1756912387861,7.95499322,4477.7,4477.6,3.767]
[1756912388064,9.23729322,4477.7,4477.6,3.767]
[1756912388782,3.51558941,4477.7,4477.6,3.767]
[1756912389196,9.23729322,4477.7,4477.6,3.767]
[1756912389404,3.51558941,4477.7,4477.6,3.767]
[1756912391162,2.99258941,4477.7,4477.6,3.767]
[1756912391360,0.1366,4477.8,4477.6,4.0561]
[1756912391788,0.1366,4477.8,4477.6,4.61]
[1756912391992,0.0246,4477.8,4477.6,4.61]
[1756912392198,0.0246,4477.8,4477.7,3.818]
[1756912392594,0.3326,4477.8,4477.7,3.818]
[1756912395098,2.56583953,4477.8,4477.7,3.818]
[1756912395493,3.51813953,4477.8,4477.7,3.818]
[1756912396672,3.01713953,4477.8,4477.7,3.818]
[1756912397612,3.01713953,4477.8,4477.6,0.001]
[1756912397613,2.23328941,4477.7,4477.6,0.001]
[1756912397770,2.73428941,4477.7,4477.6,3.818]
[1756912397970,3.04228941,4477.7,4477.6,3.818]
[1756912398198,3.04228941,4477.7,4477.6,0.001]
[1756912398199,3.60558941,4477.7,4477.6,0.001]
[1756912398499,3.60558941,4477.7,4477.6,3.818]
[1756912398711,10.76458941,4477.7,4477.6,0.001]
[1756912399577,10.26358941,4477.7,4477.6,0.001]
[1756912400601,9.81228941,4477.7,4477.6,0.001]
[1756912401099,9.81228941,4477.7,4477.6,3.818]
[1756912401100,10.26358941,4477.7,4477.6,3.818]
[1756912401301,10.76458941,4477.7,4477.6,3.818]
[1756912401466,10.26358941,4477.7,4477.6,3.818]
[1756912403485,10.76458941,4477.7,4477.6,0.001]
[1756912403685,10.76458941,4477.7,4477.6,3.818]
[1756912403883,13.76458941,4477.7,4477.6,0.001]
[1756912404210,13.76458941,4477.7,4477.2,0.001]
[1756912404211,2.23348893,4477.3,4477.2,0.001]
[1756912404412,5.34548893,4477.3,4477.2,0.001]
[1756912404605,2.54148893,4477.3,4477.2,0.001]
[1756912404986,2.99278893,4477.3,4477.2,0.001]
[1756912405318,9.85988497,4477.3,4477.2,0.001]
[1756912405684,10.36088497,4477.3,4477.2,0.001]
[1756912406134,17.17788497,4477.3,4477.2,0.001]
[1756912406414,17.96988497,4477.3,4477.2,0.001]
[1756912407829,3.0,4477.2,4476.7,0.001]
[1756912408131,12.10083442,4476.8,4476.7,0.001]
[1756912408286,16.22583442,4476.8,4476.7,0.001]
[1756912408487,17.17813442,4476.8,4476.7,0.001]
[1756912409419,17.17733442,4476.8,4476.7,0.001]
[1756912410821,16.67633442,4476.8,4476.7,0.001]
[1756912411589,17.17733442,4476.8,4476.7,0.001]
[1756912411811,0.792,4476.6,4475.8,0.025]
[1756912412009,9.10128357,4475.9,4475.8,0.025]
[1756912412223,16.21418357,4475.9,4475.8,0.025]
[1756912412413,17.17888357,4475.9,4475.8,0.025]
[1756912412921,18.0797661,4475.9,4475.8,1e-08]
[1756912414495,18.1917661,4475.9,4475.8,1e-08]
[1756912415104,18.35916209,4475.9,4475.8,1e-08]
[1756912416903,19.57616209,4475.9,4475.8,1e-08]
[1756912417749,20.07716209,4475.9,4475.8,1e-08]
[1756912418248,20.07716209,4475.9,4475.1,0.001]
[1756912418249,2.23448707,4475.3,4475.1,0.001]
[1756912418421,12.91858311,4475.3,4475.1,0.001]
[1756912418615,13.03058311,4475.3,4475.1,0.001]
[1756912418931,13.32648311,4475.3,4475.1,0.001]
[1756912419459,13.79018311,4475.3,4475.1,0.001]
[1756912420841,13.79018311,4475.3,4474.7,0.001]
[1756912421053,2.2354861,4473.3,4473.2,0.463]
[1756912421214,2.2354861,4473.3,4473.2,0.2892]
[1756912421414,5.2354861,4473.3,4473.2,0.001]
[1756912421611,5.5313861,4473.3,4473.2,0.001]
[1756912422337,6.43671663,4473.3,4473.2,0.001]
[1756912422536,2.23598595,4472.3,4471.6,0.5364]
[1756912422739,2.23618596,4471.9,4471.6,0.5364]
[1756912423112,5.23618596,4471.9,4471.6,0.001]
[1756912423549,5.23618596,4471.9,4471.8,0.3132]
[1756912423721,5.23618596,4471.9,4471.8,1.3106]
[1756912423931,3.5364,4472.5,4471.8,1.3106]
[1756912424110,14.00922597,4473.3,4471.8,1.3106]
[1756912424111,2.23615094,4472.0,4471.9,0.9974]
[1756912424438,2.23615094,4472.0,4471.8,0.025]
[1756912424439,5.23618596,4471.9,4471.8,0.025]
[1756912424740,5.53208596,4471.9,4471.8,0.025]
[1756912425439,6.32408596,4471.9,4471.8,0.025]
[1756912425640,6.78778596,4471.9,4471.8,0.025]
[1756912426557,18.1736814,4471.9,4471.8,0.025]
[1756912429460,17.7099814,4471.9,4471.8,0.025]
[1756912429814,18.1736814,4471.9,4471.8,0.025]
[1756912430122,17.7099814,4471.9,4471.8,0.025]
[1756912430461,21.5289814,4471.9,4471.8,0.025]
[1756912430612,21.9926814,4471.9,4471.8,1e-08]
[1756912431114,22.1046814,4471.9,4471.8,1e-08]
[1756912432036,18.2856814,4471.9,4471.8,1e-08]
[1756912432219,22.1046814,4471.9,4471.8,1e-08]
[1756912433316,10.25608596,4471.9,4471.8,1e-08]
[1756912434060,10.25528596,4471.9,4471.8,1e-08]
[1756912434211,6.43528596,4471.9,4471.8,1e-08]
[1756912434418,9.95938596,4471.9,4471.8,0.28820001]
[1756912434648,5.34738596,4471.9,4471.8,0.28820001]
[1756912434817,9.16738596,4471.9,4471.8,1.28560001]
[1756912435554,9.16738596,4471.9,4471.8,0.82360001]
[1756912436113,9.16738596,4471.9,4471.8,0.28820001]
[1756912436372,9.16738596,4471.9,4471.8,1e-08]
[1756912436867,9.95938596,4471.9,4471.8,0.28820001]
[1756912437230,9.95938596,4471.9,4471.8,1e-08]
[1756912437952,10.25528596,4471.9,4471.8,1e-08]
[1756912438444,9.95938596,4471.9,4471.8,1e-08]
[1756912439023,10.25528596,4471.9,4471.8,1e-08]
[1756912439734,10.25528596,4471.9,4471.8,0.00100001]
[1756912440058,10.70438596,4471.9,4471.8,0.00100001]
[1756912440264,10.25528596,4471.9,4471.8,0.00100001]
[1756912441036,10.70438596,4471.9,4471.8,0.00100001]
[1756912441254,10.70438596,4471.9,4471.8,9.705e-05]
[1756912442127,10.98105123,4471.9,4471.8,9.705e-05]
[1756912443241,6.02828597,4471.7,4471.6,0.001]
[1756912443445,16.73937455,4471.7,4471.6,0.001]
[1756912443638,17.04607455,4471.7,4471.6,0.001]
[1756912444959,2.23653605,4471.2,4471.1,0.001]
[1756912445271,12.94762463,4471.2,4471.1,0.001]
[1756912446132,17.04632463,4471.2,4471.1,0.001]
[1756912447595,16.73962463,4471.2,4471.1,0.001]
[1756912447888,16.73962463,4471.2,4471.1,0.2878]
[1756912448293,12.12762463,4471.2,4471.1,1.3251]
[1756912448495,6.05653605,4471.2,4471.1,1.3251]
[1756912448706,9.05653605,4471.2,4471.1,1.3251]
[1756912449056,9.05653605,4471.2,4471.1,0.8616]
[1756912449407,9.05653605,4471.2,4471.1,1.3251]
[1756912450287,9.05653605,4471.2,4471.1,0.41838024]
[1756912450455,9.05653605,4471.2,4471.1,0.2868]
[1756912451155,9.05653605,4471.2,4471.1,0.00745127]
[1756912451355,5.23653605,4471.2,4471.1,0.00745127]
[1756912451555,9.05653605,4471.2,4471.1,0.00745127]
[1756912452382,2.23663609,4471.0,4470.9,0.001]
[1756912452571,12.94672467,4471.0,4470.9,0.001]
[1756912452748,13.05872467,4471.0,4470.9,0.784]
[1756912453153,6.16763609,4471.0,4470.9,0.784]
[1756912454484,6.61060213,4472.0,4470.9,0.9148]
[1756912454685,2.23644075,4471.4,4471.0,0.7046]
[1756912454859,2.23650213,4471.3,4471.0,0.7046]
[1756912455059,0.67251832,4472.2,4471.2,0.2092]
[1756912455255,1.747,4472.8,4471.3,0.7046]
[1756912455456,3.982736,4472.8,4472.7,0.2092]
[1756912455762,2.262736,4472.8,4472.7,0.783]
[1756912456356,2.23598595,4472.3,4472.2,0.5738]
[1756912456587,3.0,4472.2,4471.3,1.72]
[1756912456789,2.23648603,4471.3,4471.2,0.5738]
[1756912456971,2.23648603,4471.3,4471.2,0.2092]
[1756912458063,2.23653605,4471.2,4471.1,0.001]
[1756912458265,12.73858436,4471.2,4471.1,0.001]
[1756912458592,13.04448436,4471.2,4471.1,0.001]
[1756912459869,16.86248436,4471.2,4471.1,0.001]
[1756912461194,0.792,4470.9,4470.8,0.00226438]
[1756912461374,15.58303443,4470.9,4470.8,0.00226438]
[1756912461565,11.12708612,4470.9,4470.8,0.00226438]
[1756912462390,10.60248612,4470.9,4470.8,0.00226438]
[1756912462561,5.23668612,4470.9,4470.8,0.00226438]
[1756912462765,9.05468612,4470.9,4470.8,0.00226438]
[1756912462962,9.81048612,4470.9,4470.8,0.00226438]
[1756912463184,11.12708612,4470.9,4470.8,0.00226438]
[1756912464266,10.60248612,4470.9,4470.8,0.00226438]
[1756912464789,6.61428064,4470.9,4470.8,0.00226438]
[1756912464988,5.34868612,4470.9,4470.8,0.00226438]
[1756912465191,9.16668612,4470.9,4470.8,0.00226438]
[1756912465587,16.32668612,4470.9,4470.8,0.00226438]
[1756912466197,16.32668612,4470.9,4470.8,0.21146438]
[1756912466198,12.50868612,4470.9,4470.8,0.21146438]
[1756912466394,12.50868612,4470.9,4470.8,0.00226438]
[1756912466595,16.32668612,4470.9,4470.8,0.00226438]
[1756912466769,16.32668612,4470.9,4470.8,0.21146438]
[1756912466970,16.32668612,4470.9,4470.8,0.00226438]
[1756912467885,17.08248612,4470.9,4470.8,0.00226438]
[1756912468692,16.32668612,4470.9,4470.8,0.00226438]
[1756912468903,16.32668612,4470.9,4470.8,0.21146438]
[1756912469073,16.32668612,4470.9,4470.8,0.00226438]
[1756912470898,12.50868612,4470.9,4470.8,0.00226438]
[1756912471196,16.32668612,4470.9,4470.8,0.00226438]
[1756912473194,17.10098612,4470.9,4470.8,0.00226438]
[1756912473365,16.32668612,4470.9,4470.8,0.00226438]
[1756912474917,7.16,4470.9,4470.8,0.87826438]
[1756912475067,7.272,4470.9,4470.8,0.87826438]
[1756912475470,9.50868612,4470.9,4470.8,0.87826438]
[1756912475669,7.272,4470.9,4470.8,0.87826438]
[1756912476404,7.272,4470.9,4470.8,0.87926438]
[1756912477464,9.50868612,4470.9,4470.8,0.87926438]
[1756912477679,9.50868612,4470.9,4470.8,0.74846438]
[1756912478925,7.272,4470.9,4470.8,0.74846438]
[1756912479283,9.50868612,4470.9,4470.8,0.74846438]
[1756912480102,7.272,4470.9,4470.8,0.74846438]
[1756912480511,0.002,4472.2,4470.8,0.87926438]
[1756912480788,0.112,4472.1,4471.5,2.34838349]
[1756912480987,0.112,4472.1,4472.0,0.2092]
[1756912481415,0.112,4472.1,4472.0,0.7452]
[1756912481583,0.112,4472.1,4472.0,0.876]
[1756912481916,0.112,4472.1,4472.0,0.7452]
[1756912482293,0.112,4472.1,4472.0,0.876]
[1756912482596,2.23619289,4471.9,4471.6,1.72]
[1756912482796,0.112,4472.1,4471.6,1.72]
[1756912483010,0.4722,4472.0,4471.6,1.72]
[1756912483330,2.23653605,4471.2,4471.1,0.536]
[1756912483525,2.23653605,4471.2,4471.1,0.7452]
[1756912483687,2.34828682,4471.7,4471.1,0.7452]
[1756912484316,2.23633598,4471.6,4471.1,0.7452]
[1756912484691,2.2364287,4471.5,4471.2,0.536]
[1756912484891,2.2364287,4471.5,4471.4,0.2092]
[1756912485139,0.112,4471.7,4471.4,0.7452]
[1756912485302,2.23637341,4471.6,4471.5,0.536]
[1756912485501,2.23645571,4471.4,4471.0,4.352]
[1756912485701,2.23649818,4471.3,4471.0,3.816]
[1756912485938,2.34843973,4471.4,4471.2,0.2092]
[1756912486137,2.34843973,4471.4,4471.2,0.7452]
[1756912486304,2.23648603,4471.3,4471.2,0.7452]
[1756912486936,2.34844465,4471.4,4471.2,0.7452]
[1756912487135,2.34844465,4471.4,4471.2,0.2092]
[1756912487136,0.112,4471.4,4471.2,0.2092]
[1756912487339,0.112,4471.4,4471.3,0.536]
[1756912487637,0.112,4471.4,4471.3,0.7452]
[1756912488040,2.34843601,4471.4,4471.3,0.2092]
[1756912488741,2.23649203,4471.3,4470.9,0.536]
[1756912489043,2.23649448,4471.3,4471.1,3.815]
[1756912489201,2.23649448,4471.3,4471.0,0.536]
[1756912489407,2.23649448,4471.3,4471.1,3.815]
[1756912489643,0.112,4471.4,4471.2,0.2092]
[1756912490146,2.34844302,4471.4,4471.2,0.7452]
[1756912491135,2.23648603,4471.3,4471.2,0.7452]
[1756912491358,0.3021,4471.3,4470.8,1.83526438]
[1756912491510,2.34863609,4471.0,4470.9,3.815]
[1756912491719,2.23668612,4470.9,4470.8,1.72326438]
[1756912491902,3.24338612,4470.9,4470.8,0.00326438]
[1756912492107,3.54548612,4470.9,4470.8,0.00326438]
[1756912494870,6.54548612,4470.9,4470.8,0.00326438]
[1756912498124,2.23673615,4470.8,4470.7,0.001]
[1756912498426,6.05073615,4470.8,4470.7,0.001]
[1756912498662,7.35953615,4470.8,4470.7,0.001]
[1756912499038,10.35953615,4470.8,4470.7,0.001]
[1756912500538,10.44923623,4470.8,4470.7,0.001]
[1756912502145,11.24123623,4470.8,4470.7,0.001]
[1756912503543,6.63523623,4470.8,4470.7,0.001]
[1756912503754,6.05073615,4470.8,4470.7,0.001]
[1756912503954,9.05073615,4470.8,4470.7,0.001]
[1756912504144,16.98253615,4470.8,4470.7,0.001]
[1756912505146,16.21073615,4470.8,4470.7,0.001]
[1756912505378,16.21073615,4470.8,4470.7,0.2102]
[1756912505548,16.21073615,4470.8,4470.7,0.7356]
[1756912506853,16.21073615,4470.8,4470.7,0.001]
[1756912507081,16.98253615,4470.8,4470.7,0.001]
[1756912507382,16.98173615,4470.8,4470.7,0.001]
[1756912507857,16.20993615,4470.8,4470.7,0.001]
[1756912508062,13.16773615,4470.8,4470.7,0.001]
[1756912508260,12.39593615,4470.8,4470.7,0.001]
[1756912508588,16.32193615,4470.8,4470.7,0.001]
[1756912508921,16.32193615,4470.8,4470.7,0.2102]
[1756912509874,16.32193615,4470.8,4470.7,0.001]
[1756912510379,12.50793615,4470.8,4470.7,0.001]
[1756912510581,16.32093615,4470.8,4470.7,0.2102]
[1756912510985,2.69503754,4471.2,4470.7,0.2102]
[1756912510986,3.813,4471.5,4470.7,0.8664]
[1756912511280,0.112,4471.0,4470.8,0.5254]
[1756912511451,0.112,4471.0,4470.9,0.2092]
[1756912511654,2.34867307,4471.0,4470.9,0.2092]
[1756912511852,2.34867307,4471.0,4470.9,0.7346]
[1756912512660,0.114,4471.0,4470.9,0.7346]
[1756912512888,0.114,4471.0,4470.9,0.8654]
[1756912513682,0.002,4471.0,4470.9,4.00608612]
[1756912513884,0.002,4471.0,4470.9,4.65517643]
[1756912514085,0.002,4471.0,4470.9,4.63280957]
[1756912515967,0.002,4471.0,4470.9,7.63280957]
[1756912516875,0.002,4471.5,4471.4,21.10602238]
[1756912517077,0.002,4471.5,4471.4,22.82602238]
[1756912517270,0.002,4471.5,4471.4,26.07133035]
[1756912517466,0.002,4471.5,4471.4,10.99374398]
[1756912517986,0.002,4471.5,4471.4,14.80574398]
[1756912518958,1e-08,4472.1,4472.0,3.02813595]
[1756912519201,1e-08,4472.1,4472.0,26.61308085]
[1756912519496,1e-08,4472.1,4472.0,29.83602747]
[1756912520903,1e-08,4472.1,4472.0,14.64944392]
[1756912521070,1e-08,4472.1,4472.0,18.46044392]
[1756912522080,1e-08,4472.1,4472.0,18.45944392]
[1756912524808,1e-08,4472.1,4472.0,14.64944392]
[1756912524963,1e-08,4472.1,4472.0,18.45844392]
[1756912525894,1e-08,4472.1,4472.0,18.32764392]
[1756912526281,1e-08,4472.1,4472.0,18.45844392]
[1756912528664,0.002,4473.1,4472.9,3.02768602]
[1756912528864,0.002,4473.1,4472.9,11.97045462]
[1756912529064,0.002,4473.1,4472.9,12.83585462]
[1756912529297,0.002,4473.1,4472.9,12.70405462]
[1756912531194,0.002,4473.1,4472.9,8.16145462]
[1756912531398,0.002,4473.1,4472.9,11.96945462]
[1756912532002,0.0012,4473.0,4472.9,11.96945462]
[1756912533323,0.0012,4473.0,4472.9,12.17865462]
[1756912533524,0.0012,4473.0,4472.9,12.68625462]
[1756912533891,0.0012,4473.0,4472.9,12.81705462]
[1756912534312,0.002,4473.3,4473.2,3.02753608]
[1756912534513,0.002,4473.3,4473.2,8.36215051]
[1756912534712,0.002,4473.3,4473.2,9.29939515]
[1756912535102,0.002,4473.3,4473.2,5.36159515]
[1756912535302,0.002,4473.3,4473.2,9.16859515]
[1756912535499,0.002,4473.3,4473.2,5.36159515]
[1756912535714,0.002,4473.3,4473.2,9.16859515]
[1756912536248,0.7671,4473.3,4473.2,11.45179515]
[1756912536447,0.7671,4473.3,4473.2,0.112]
[1756912536647,1.2711,4473.3,4473.2,3.919]